fUST/lending_fUST_20250619
["ID","MTS","AMOUNT","RATE_DAILY","PERIOD"]
[366494614,1750289442216,-460.0,0.00022465,6]
[366494615,1750289442225,-460.0,0.00022465,6]
[366494616,1750289442234,-460.0,0.00022465,6]
[366494617,1750289442244,-1292.48,0.00022465,6]
[366494618,1750289442253,-460.0,0.00022465,6]
[366494619,1750289442263,-623.98,0.00022465,6]
[366494620,1750289442272,-460.0,0.00022465,6]
[366494621,1750289442282,-483.96,0.00022465,6]
[366494622,1750289442292,-460.0,0.00022465,6]
[366494623,1750289442302,-460.0,0.00022465,6]
[366494624,1750289442312,-460.0,0.00022465,6]
[366494625,1750289442321,-606.45,0.00022465,6]
[366494626,1750289442330,-460.0,0.00022465,6]
[366494627,1750289442339,-460.0,0.00022465,6]
[366494628,1750289442349,-460.0,0.00022465,6]
[366494629,1750289442357,-536.05,0.00022465,6]
[366494630,1750289442366,-1470.59,0.00022465,6]
[366494631,1750289442374,-1743.5,0.00022465,6]
[366494632,1750289442383,-501.92,0.00022465,6]
[366494633,1750289442391,-460.0,0.00022465,6]
[366494634,1750289442399,-460.0,0.00022465,6]
[366494635,1750289442408,-460.0,0.00022465,6]
[366494636,1750289442417,-460.0,0.00022465,6]
[366494638,1750289442427,-460.0,0.00022465,6]
[366494639,1750289442436,-430.0,0.00022465,6]
[366494640,1750289442446,-410.0,0.00022465,6]
[366494641,1750289442455,-967.85,0.00022465,6]
[366494642,1750289442465,-460.0,0.00022465,6]
[366494644,1750289442474,-460.0,0.00022465,6]
[366494645,1750289442483,-460.0,0.00022465,6]
[366494646,1750289442492,-476.44314004,0.00022465,6]
[366494648,1750289442501,-460.0,0.00022465,6]
[366494649,1750289442511,-460.0,0.00022465,6]
[366494650,1750289442520,-460.0,0.00022465,6]
[366494651,1750289442529,-460.0,0.00022465,6]
[366494652,1750289442538,-704.69,0.00022465,6]
[366494653,1750289442548,-485.61,0.00022465,2]
[366494655,1750289442557,-2548.33,0.00022465,6]
[366494656,1750289442567,-1096.88,0.00022465,6]
[366494657,1750289442576,-2540.22,0.00022465,6]
[366494658,1750289442586,-5080.31,0.00022465,6]
[366494659,1750289442596,-460.0,0.00022465,6]
[366494660,1750289442605,-460.0,0.00022465,6]
[366494661,1750289442614,-279.40538053,0.00022473,2]
[366494662,1750289442623,-500.0,0.00022473,2]
[366494663,1750289442633,-500.0,0.00022473,2]
[366494664,1750289442642,-500.0,0.00022473,2]
[366494665,1750289442651,-600.0,0.00022473,2]
[366494666,1750289442661,-502.07646515,0.00022473,2]
[366494667,1750289442670,-299.56773809,0.00022473,2]
[366494668,1750289442679,-500.0,0.00022473,2]
[366494669,1750289442689,-500.0,0.00022473,2]
[366494671,1750289442698,-500.0,0.00022473,2]
[366494673,1750289442707,-500.0,0.00022473,2]
[366494674,1750289442716,-151.0,0.00022473,7]
[366494675,1750289442725,-151.0,0.00022473,7]
[366494676,1750289442734,-500.0,0.00022521,2]
[366494677,1750289442743,-508.34097572,0.00022521,2]
[366494678,1750289442752,-751.52,0.00022543,5]
[366494679,1750289442761,-151.0,0.00022547,6]
[366494680,1750289442770,-151.0,0.00022547,6]
[366494681,1750289442779,-151.0,0.00022547,6]
[366494682,1750289442788,-151.0,0.00022547,6]
[366494683,1750289442797,-151.0,0.00022547,2]
[366494685,1750289442806,-156.71109524,0.00022547,6]
[366494686,1750289442815,-500.0,0.00022547,6]
[366494687,1750289442825,-151.0,0.00022547,6]
[366494689,1750289442834,-151.0,0.00022547,6]
[366494690,1750289442843,-500.0,0.00022547,6]
[366494691,1750289442853,-151.0,0.00022547,6]
[366494692,1750289442862,-151.0,0.00022547,6]
[366494693,1750289442871,-500.0,0.00022547,6]
[366494694,1750289442880,-151.0,0.00022547,6]
[366494695,1750289442889,-420.0,0.00022557,2]
[366494696,1750289442899,-199.0,0.00022574,6]
[366494697,1750289442908,-151.0,0.00022574,6]
[366494698,1750289442917,-198.0,0.00022574,6]
[366494699,1750289442926,-517.41362661,0.00022574,6]
[366494700,1750289442935,-151.0,0.00022574,6]
[366494702,1750289442945,-198.0,0.00022574,6]
[366494704,1750289442954,-500.0,0.00022574,6]
[366494706,1750289442963,-151.0,0.00022574,6]
[366494707,1750289442972,-151.0,0.00022574,6]
[366494709,1750289442981,-500.0,0.00022574,6]
[366494710,1750289442990,-151.0,0.00022574,6]
[366494711,1750289442999,-846.12437186,0.0002259,7]
[366494712,1750289443008,-151.0,0.00022602,6]
[366494713,1750289443018,-208.6319519,0.00022602,6]
[366494714,1750289443028,-500.0,0.00022602,6]
[366494716,1750289443037,-212.69819409,0.00022602,6]
[366494717,1750289443046,-198.0,0.00022602,6]
[366494718,1750289443055,-500.0,0.00022602,6]
[366494719,1750289443065,-151.0,0.00022602,6]
[366494720,1750289443074,-292.383411,0.00022629,6]
[366494721,1750289443083,-500.0,0.00022629,6]
[366494722,1750289443097,-500.0,0.00022629,6]
[366494723,1750289443106,-151.0,0.00022629,6]
[366494724,1750289443118,-751.52,0.00022643,5]
[366494725,1750289443128,-500.0,0.00022657,6]
[366494726,1750289443139,-500.0,0.00022657,6]
[366494727,1750289443149,-151.0,0.00022657,6]
[366494728,1750289443159,-151.0,0.00022657,7]
[366494729,1750289443170,-195.17,0.00022661,2]
[366494730,1750289443179,-453.0,0.00022684,6]
[366494731,1750289443189,-500.0,0.00022684,6]
[366494732,1750289443198,-245.0,0.00022684,6]
[366494733,1750289443208,-500.0,0.00022711,6]
[366494734,1750289443218,-846.12437186,0.00022728,7]
[366494735,1750289443227,-500.0,0.00022739,6]
[366494736,1750289443236,-460.0,0.00022739,6]
[366494737,1750289443246,-430.0,0.00022739,6]
[366494738,1750289443255,-460.0,0.00022739,6]
[366494739,1750289443265,-460.0,0.00022739,6]
[366494740,1750289443274,-460.0,0.00022739,6]
[366494741,1750289443284,-390.0,0.00022739,6]
[366494742,1750289443293,-570.0,0.00022739,6]
[366494743,1750289443303,-430.0,0.00022739,6]
[366494744,1750289443312,-243.37310354,0.00022739,6]
[366494745,1750289443321,-430.0,0.00022739,6]
[366494746,1750289443331,-400.0,0.00022739,6]
[366494747,1750289443340,-400.0,0.00022739,6]
[366494748,1750289443350,-540.0,0.00022739,6]
[366494749,1750289443360,-460.0,0.00022739,6]
[366494750,1750289443370,-460.0,0.00022739,6]
[366494751,1750289443380,-460.0,0.00022739,6]
[366494752,1750289443390,-460.0,0.00022739,6]
[366494753,1750289443400,-460.0,0.00022739,6]
[366494754,1750289443409,-460.0,0.00022739,6]
[366494755,1750289443420,-460.0,0.00022739,6]
[366494756,1750289443430,-151.0,0.00022739,7]
[366494757,1750289443439,-460.0,0.00022739,6]
[366494758,1750289443449,-151.0,0.00022739,7]
[366494759,1750289443459,-151.0,0.00022739,7]
[366494760,1750289443469,-460.0,0.00022739,6]
[366494761,1750289443478,-151.0,0.00022739,7]
[366494762,1750289443488,-400.0,0.00022739,6]
[366494763,1750289443498,-460.0,0.00022739,6]
[366494764,1750289443509,-420.0,0.00022739,6]
[366494765,1750289443519,-151.0,0.00022739,7]
[366494766,1750289443528,-549.94,0.00022739,6]
[366494767,1750289443538,-466.36,0.00022739,6]
[366494768,1750289443547,-460.0,0.00022739,6]
[366494769,1750289443556,-460.0,0.00022739,6]
[366494770,1750289443566,-151.0,0.00022739,7]
[366494771,1750289443575,-460.0,0.00022739,6]
[366494772,1750289443585,-460.0,0.00022739,6]
[366494773,1750289443594,-460.0,0.00022739,6]
[366494774,1750289443605,-460.0,0.00022739,6]
[366494775,1750289443615,-460.0,0.00022739,6]
[366494776,1750289443624,-460.0,0.00022739,6]
[366494777,1750289443633,-460.0,0.00022739,6]
[366494778,1750289443642,-460.0,0.00022739,6]
[366494779,1750289443653,-460.0,0.00022739,6]
[366494780,1750289443662,-460.0,0.00022739,6]
[366494781,1750289443671,-460.0,0.00022739,6]
[366494782,1750289443679,-460.0,0.00022739,6]
[366494783,1750289443688,-460.0,0.00022739,6]
[366494784,1750289443697,-460.0,0.00022739,6]
[366494785,1750289443706,-460.0,0.00022739,6]
[366494786,1750289443715,-460.0,0.00022739,6]
[366494787,1750289443723,-460.0,0.00022739,6]
[366494788,1750289443732,-261.35139803,0.00022739,6]
[366494789,1750289443741,-460.0,0.00022739,6]
[366494790,1750289443750,-1737.21,0.00022739,6]
[366494791,1750289443759,-460.0,0.00022739,6]
[366494792,1750289443769,-484.54,0.00022739,6]
[366494793,1750289443778,-460.0,0.00022739,6]
[366494794,1750289443787,-460.0,0.00022739,6]
[366494795,1750289443796,-460.0,0.00022739,6]
[366494796,1750289443805,-822.41,0.00022739,6]
[366494797,1750289443814,-3389.67,0.00022739,6]
[366494798,1750289443823,-732.6,0.00022739,6]
[366494799,1750289443831,-460.0,0.00022739,6]
[366494800,1750289443839,-468.24,0.00022739,6]
[366494801,1750289443847,-400.0,0.00022739,6]
[366494802,1750289443856,-1139.76,0.00022739,6]
[366494803,1750289443865,-460.0,0.00022739,6]
[366494804,1750289443874,-576.84,0.00022739,6]
[366494805,1750289443883,-460.0,0.00022739,6]
[366494806,1750289443893,-460.0,0.00022739,6]
[366494807,1750289443904,-460.0,0.00022739,6]
[366494808,1750289443913,-1815.65,0.00022739,6]
[366494809,1750289443923,-460.0,0.00022739,6]
[366494810,1750289443932,-460.0,0.00022739,6]
[366494811,1750289443941,-460.0,0.00022739,6]
[366494812,1750289443951,-300.0,0.00022739,6]
[366494813,1750289443961,-460.0,0.00022739,6]
[366494814,1750289443970,-460.0,0.00022739,6]
[366494815,1750289443979,-460.0,0.00022739,6]
[366494816,1750289443990,-3229.86,0.00022739,6]
[366494817,1750289444001,-460.0,0.00022739,6]
[366494818,1750289444010,-430.0,0.00022739,6]
[366494819,1750289444020,-2172.51,0.00022739,6]
[366494820,1750289444030,-460.0,0.00022739,6]
[366494821,1750289444040,-640.45,0.00022739,6]
[366494822,1750289444049,-460.0,0.00022739,6]
[366494823,1750289444059,-2893.22,0.00022739,6]
[366494824,1750289444068,-3677.93,0.00022739,6]
[366494825,1750289444077,-883.46,0.00022739,6]
[366494826,1750289444092,-460.0,0.00022739,6]
[366494827,1750289444101,-460.0,0.00022739,6]
[366494828,1750289444110,-624.56,0.00022739,6]
[366494829,1750289444120,-710.01,0.00022739,6]
[366494830,1750289444129,-370.0,0.00022739,6]
[366494831,1750289444139,-460.0,0.00022739,6]
[366494832,1750289444149,-1265.83,0.00022739,6]
[366494833,1750289444158,-580.51,0.00022739,6]
[366494834,1750289444170,-732.5,0.00022739,6]
[366494835,1750289444180,-460.0,0.00022739,6]
[366494836,1750289444190,-460.0,0.00022739,6]
[366494837,1750289444199,-1028.01,0.00022739,6]
[366494838,1750289444209,-460.0,0.00022739,6]
[366494839,1750289444218,-1364.15,0.00022739,6]
[366494840,1750289444228,-460.0,0.00022739,6]
[366494841,1750289444237,-460.0,0.00022739,6]
[366494842,1750289444247,-430.0,0.00022739,6]
[366494843,1750289444256,-460.0,0.00022739,6]
[366494844,1750289444266,-1292.48,0.00022739,6]
[366494845,1750289444276,-460.0,0.00022739,6]
[366494846,1750289444286,-623.98,0.00022739,6]
[366494847,1750289444294,-460.0,0.00022739,6]
[366494848,1750289444302,-483.96,0.00022739,6]
[366494849,1750289444310,-430.0,0.00022739,6]
[366494850,1750289444319,-460.0,0.00022739,6]
[366494851,1750289444328,-460.0,0.00022739,6]
[366494852,1750289444341,-606.45,0.00022739,6]
[366494853,1750289444350,-460.0,0.00022739,6]
[366494854,1750289444359,-460.0,0.00022739,6]
[366494855,1750289444369,-460.0,0.00022739,6]
[366494856,1750289444379,-536.05,0.00022739,6]
[366494857,1750289444389,-1470.59,0.00022739,6]
[366494858,1750289444403,-1743.5,0.00022739,6]
[366494859,1750289444414,-501.92,0.00022739,6]
[366494860,1750289444424,-460.0,0.00022739,6]
[366494861,1750289444433,-400.0,0.00022739,6]
[366494862,1750289444442,-246.44731964,0.00022739,6]
[366494863,1750289444451,-460.0,0.00022739,6]
[366494864,1750289444461,-967.85,0.00022739,6]
[366494865,1750289444470,-460.0,0.00022739,6]
[366494866,1750289444480,-460.0,0.00022739,6]
[366494867,1750289444488,-460.0,0.00022739,6]
[366494868,1750289444496,-570.56,0.00022739,6]
[366494869,1750289444512,-460.0,0.00022739,6]
[366494870,1750289444521,-313.88125527,0.00022739,6]
[366494871,1750289444528,-151.59711551,0.00022739,6]
[366494872,1750289444538,-704.69,0.00022739,6]
[366494873,1750289444549,-485.61,0.00022739,2]
[366494874,1750289444558,-2548.33,0.00022739,6]
[366494875,1750289444569,-1096.88,0.00022739,6]
[366494876,1750289444579,-2540.22,0.00022739,6]
[366494877,1750289444589,-5080.31,0.00022739,6]
[366494878,1750289444599,-460.0,0.00022739,6]
[366494879,1750289444609,-460.0,0.00022739,6]
[366494880,1750289444619,-751.52,0.00022743,6]
[366494881,1750289444628,-500.0,0.00022766,6]
[366494882,1750289444639,-500.0,0.00022794,6]
[366494883,1750289444650,-1000.0,0.000228,2]
[366494884,1750289444661,-1000.0,0.000228,2]
[366494885,1750289444768,-1000.0,0.000228,2]
[366494886,1750289444797,-1000.0,0.000228,2]
[366494887,1750289444807,-1000.0,0.000228,2]
[366494888,1750289444818,-1000.0,0.000228,2]
[366494889,1750289444828,-500.0,0.00022821,6]
[366494890,1750289444838,-751.52,0.00022843,6]
[366494891,1750289444848,-415.47087601,0.00022848,6]
[366494892,1750289444857,-846.12437186,0.00022866,8]
[366494893,1750289444867,-751.52,0.00022943,7]
[366494894,1750289444876,-846.12437186,0.00023003,8]
[366494895,1750289444886,-400.0,0.00023013,6]
[366494896,1750289444898,-460.0,0.00023013,6]
[366494897,1750289444907,-460.0,0.00023013,6]
[366494898,1750289444917,-460.0,0.00023013,6]
[366494899,1750289444927,-460.0,0.00023013,6]
[366494900,1750289444938,-460.0,0.00023013,6]
[366494901,1750289444948,-460.0,0.00023013,6]
[366494902,1750289444957,-460.0,0.00023013,6]
[366494903,1750289444967,-460.0,0.00023013,6]
[366494904,1750289444977,-580.80122827,0.00023013,6]
[366494905,1750289444987,-460.0,0.00023013,6]
[366494906,1750289444996,-549.94,0.00023013,6]
[366494907,1750289445006,-466.36,0.00023013,6]
[366494908,1750289445016,-460.0,0.00023013,6]
[366494909,1750289445026,-460.0,0.00023013,6]
[366494910,1750289445037,-151.0,0.00023013,7]
[366494911,1750289445047,-460.0,0.00023013,6]
[366494912,1750289445057,-460.0,0.00023013,6]
[366494913,1750289445066,-460.0,0.00023013,6]
[366494914,1750289445079,-460.0,0.00023013,6]
[366494915,1750289445093,-460.0,0.00023013,6]
[366494916,1750289445106,-151.0,0.00023013,7]
[366494917,1750289445116,-460.0,0.00023013,6]
[366494918,1750289445125,-460.0,0.00023013,6]
[366494919,1750289445136,-460.0,0.00023013,6]
[366494920,1750289445147,-460.0,0.00023013,6]
[366494921,1750289445157,-460.0,0.00023013,6]
[366494922,1750289445172,-151.0,0.00023013,2]
[366494923,1750289445182,-460.0,0.00023013,6]
[366494924,1750289445193,-430.0,0.00023013,6]
[366494925,1750289445205,-307.84103979,0.00023013,6]
[366494926,1750289445215,-274.042696,0.00023013,7]
[366494927,1750289445226,-362.07239791,0.00023013,6]
[366494928,1750289445236,-460.0,0.00023013,6]
[366494929,1750289445245,-460.0,0.00023013,6]
[366494930,1750289445255,-1737.21,0.00023013,6]
[366494931,1750289445264,-151.0,0.00023013,7]
[366494932,1750289445275,-460.0,0.00023013,6]
[366494933,1750289445285,-484.54,0.00023013,6]
[366494934,1750289445294,-460.0,0.00023013,6]
[366494935,1750289445304,-822.41,0.00023013,6]
[366494936,1750289445314,-3389.67,0.00023013,6]
[366494937,1750289445324,-505.07141563,0.00023013,6]
[366494938,1750289445334,-732.6,0.00023013,6]
[366494939,1750289445343,-460.0,0.00023013,6]
[366494940,1750289445353,-468.24,0.00023013,6]
[366494941,1750289445363,-1139.76,0.00023013,6]
[366494942,1750289445373,-460.0,0.00023013,6]
[366494944,1750289445383,-576.84,0.00023013,6]
[366494945,1750289445392,-460.0,0.00023013,6]
[366494946,1750289445403,-460.0,0.00023013,6]
[366494947,1750289445413,-460.0,0.00023013,6]
[366494948,1750289445423,-1815.65,0.00023013,6]
[366494949,1750289445432,-460.0,0.00023013,6]
[366494950,1750289445442,-460.0,0.00023013,6]
[366494951,1750289445452,-460.0,0.00023013,6]
[366494952,1750289445462,-460.0,0.00023013,6]
[366494953,1750289445471,-460.0,0.00023013,6]
[366494954,1750289445481,-3229.86,0.00023013,6]
[366494955,1750289445491,-460.0,0.00023013,6]
[366494956,1750289445500,-151.0,0.00023013,7]
[366494957,1750289445510,-2172.51,0.00023013,6]
[366494958,1750289445520,-430.0,0.00023013,6]
[366494960,1750289445530,-640.45,0.00023013,6]
[366494962,1750289445539,-460.0,0.00023013,6]
[366494964,1750289445549,-2893.22,0.00023013,6]
[366494966,1750289445559,-3677.93,0.00023013,6]
[366494968,1750289445568,-883.46,0.00023013,6]
[366494969,1750289445578,-460.0,0.00023013,6]
[366494970,1750289445586,-460.0,0.00023013,6]
[366494971,1750289445595,-624.56,0.00023013,6]
[366494972,1750289445604,-188.358177,0.00023013,7]
[366494973,1750289445613,-710.01,0.00023013,6]
[366494974,1750289445621,-151.0,0.00023013,7]
[366494975,1750289445630,-188.358177,0.00023013,7]
[366494976,1750289445639,-1265.83,0.00023013,6]
[366494977,1750289445648,-580.51,0.00023013,6]
[366494978,1750289445657,-732.5,0.00023013,6]
[366494979,1750289445667,-460.0,0.00023013,6]
[366494980,1750289445677,-460.0,0.00023013,6]
[366494981,1750289445686,-1028.01,0.00023013,6]
[366494982,1750289445695,-460.0,0.00023013,6]
[366494983,1750289445705,-1364.15,0.00023013,6]
[366494984,1750289445714,-460.0,0.00023013,6]
[366494985,1750289445723,-460.0,0.00023013,6]
[366494986,1750289445732,-460.0,0.00023013,6]
[366494987,1750289445741,-1292.48,0.00023013,6]
[366494988,1750289445751,-460.0,0.00023013,6]
[366494989,1750289445760,-623.98,0.00023013,6]
[366494990,1750289445769,-483.96,0.00023013,6]
[366494991,1750289445779,-460.0,0.00023013,6]
[366494992,1750289445788,-606.45,0.00023013,6]
[366494993,1750289445797,-460.0,0.00023013,6]
[366494994,1750289445807,-547.85,0.00023013,6]
[366494995,1750289445816,-460.0,0.00023013,6]
[366494996,1750289445825,-536.05,0.00023013,6]
[366494997,1750289445834,-1470.59,0.00023013,6]
[366494998,1750289445843,-1743.5,0.00023013,6]
[366494999,1750289445852,-501.92,0.00023013,6]
[366495000,1750289445862,-460.0,0.00023013,6]
[366495001,1750289445871,-460.0,0.00023013,6]
[366495002,1750289445881,-967.85,0.00023013,6]
[366495003,1750289445891,-460.0,0.00023013,6]
[366495004,1750289445900,-460.0,0.00023013,6]
[366495005,1750289445910,-151.0,0.00023013,7]
[366495006,1750289445919,-460.0,0.00023013,6]
[366495007,1750289445928,-460.0,0.00023013,6]
[366495008,1750289445938,-704.69,0.00023013,6]
[366495009,1750289445947,-485.61,0.00023013,2]
[366495010,1750289445956,-2548.33,0.00023013,6]
[366495011,1750289445965,-1096.88,0.00023013,6]
[366495012,1750289445974,-2540.22,0.00023013,6]
[366495013,1750289445983,-5080.31,0.00023013,6]
[366495014,1750289445992,-430.0,0.00023013,6]
[366495015,1750289446001,-460.0,0.00023013,6]
[366495016,1750289446011,-1000.0,0.00023021,2]
[366495017,1750289446023,-501.56913861,0.00023021,2]
[366495018,1750289446033,-322.89050503,0.00023021,2]
[366495019,1750289446042,-1200.0,0.00023021,2]
[366495020,1750289446051,-500.0,0.00023021,2]
[366495021,1750289446061,-1000.0,0.00023021,2]
[366495022,1750289446070,-1004.08159758,0.00023021,2]
[366495023,1750289446080,-1000.0,0.00023021,2]
[366495024,1750289446092,-751.52,0.00023043,4]
[366495025,1750289446101,-680.09,0.000231,7]
[366495026,1750289446111,-500.0,0.00023114,2]
[366495027,1750289446120,-500.0,0.00023125,2]
[366495028,1750289446130,-196.93378265,0.00023125,2]
[366495029,1750289446139,-500.0,0.00023125,2]
[366495030,1750289446149,-846.12437186,0.00023141,8]
[366495031,1750289446158,-751.52,0.00023143,6]
[366495032,1750289446169,-6417.58066436,0.0002315,2]
[366495033,1750289446179,-168.17519988,0.00023187,2]
[366495034,1750289446188,-1000.0,0.000232,2]
[366495035,1750289446197,-1000.0,0.000232,2]
[366495036,1750289446207,-1000.0,0.000232,2]
[366495037,1750289446216,-1000.0,0.000232,2]
[366495038,1750289446226,-1000.0,0.000232,2]
[366495039,1750289446235,-1000.0,0.000232,2]
[366495040,1750289446244,-1000.0,0.000232,2]
[366495041,1750289446253,-168.0,0.00023226,2]
[366495042,1750289446263,-751.52,0.00023243,2]
[366495043,1750289446272,-365.5483814,0.0002326,2]
[366495044,1750289446282,-365.5483814,0.0002326,2]
[366495045,1750289446291,-365.5483814,0.0002326,2]
[366495046,1750289446301,-365.5483814,0.0002326,2]
[366495047,1750289446311,-365.5483814,0.0002326,2]
[366495048,1750289446320,-365.5483814,0.0002326,2]
[366495049,1750289446330,-365.5483814,0.0002326,2]
[366495050,1750289446339,-365.5483814,0.0002326,2]
[366495051,1750289446349,-846.12437186,0.00023279,8]
[366495052,1750289446358,-460.0,0.00023287,6]
[366495053,1750289446367,-520.45536653,0.00023287,6]
[366495054,1750289446377,-294.79258161,0.00023287,6]
[366495055,1750289446386,-151.0,0.00023287,7]
[366495056,1750289446396,-151.0,0.00023287,7]
[366495057,1750289446406,-400.0,0.00023287,6]
[366495058,1750289446415,-460.0,0.00023287,6]
[366495059,1750289446425,-460.0,0.00023287,6]
[366495060,1750289446434,-430.0,0.00023287,6]
[366495061,1750289446444,-151.0,0.00023287,7]
[366495062,1750289446454,-151.0,0.00023287,7]
[366495063,1750289446464,-151.0,0.00023287,7]
[366495064,1750289446474,-151.0,0.00023287,7]
[366495065,1750289446484,-460.0,0.00023287,6]
[366495066,1750289446494,-549.94,0.00023287,6]
[366495067,1750289446504,-466.36,0.00023287,6]
[366495068,1750289446515,-460.0,0.00023287,6]
[366495069,1750289446525,-460.0,0.00023287,6]
[366495070,1750289446535,-460.0,0.00023287,6]
[366495071,1750289446544,-460.0,0.00023287,6]
[366495072,1750289446554,-421.9266325,0.00023287,6]
[366495073,1750289446564,-400.0,0.00023287,6]
[366495074,1750289446573,-460.0,0.00023287,6]
[366495075,1750289446583,-460.0,0.00023287,6]
[366495076,1750289446592,-460.0,0.00023287,6]
[366495077,1750289446602,-460.0,0.00023287,6]
[366495078,1750289446612,-460.0,0.00023287,6]
[366495079,1750289446622,-460.0,0.00023287,6]
[366495080,1750289446631,-479.32423968,0.00023287,6]
[366495081,1750289446641,-460.0,0.00023287,6]
[366495083,1750289446651,-1737.21,0.00023287,6]
[366495085,1750289446660,-460.0,0.00023287,6]
[366495087,1750289446670,-484.54,0.00023287,6]
[366495089,1750289446680,-161.56,0.00023287,6]
[366495091,1750289446689,-822.41,0.00023287,6]
[366495093,1750289446699,-3389.67,0.00023287,6]
[366495094,1750289446708,-732.6,0.00023287,6]
[366495095,1750289446718,-460.0,0.00023287,6]
[366495096,1750289446728,-468.24,0.00023287,6]
[366495097,1750289446737,-1139.76,0.00023287,6]
[366495098,1750289446747,-460.0,0.00023287,6]
[366495099,1750289446756,-576.84,0.00023287,6]
[366495101,1750289446766,-400.0,0.00023287,6]
[366495103,1750289446776,-460.0,0.00023287,6]
[366495105,1750289446786,-460.0,0.00023287,6]
[366495107,1750289446795,-1815.65,0.00023287,6]
[366495109,1750289446805,-415.56938504,0.00023287,6]
[366495110,1750289446814,-460.0,0.00023287,6]
[366495111,1750289446824,-370.0,0.00023287,6]
[366495112,1750289446833,-460.0,0.00023287,6]
[366495113,1750289446842,-460.0,0.00023287,6]
[366495114,1750289446852,-3229.86,0.00023287,6]
[366495115,1750289446861,-460.0,0.00023287,6]
[366495116,1750289446871,-151.0,0.00023287,7]
[366495117,1750289446880,-2172.51,0.00023287,6]
[366495118,1750289446894,-640.45,0.00023287,6]
[366495119,1750289446904,-460.0,0.00023287,6]
[366495120,1750289446914,-2893.22,0.00023287,6]
[366495121,1750289446923,-3677.93,0.00023287,6]
[366495122,1750289446932,-883.46,0.00023287,6]
[366495123,1750289446943,-460.0,0.00023287,6]
[366495124,1750289446952,-460.0,0.00023287,6]
[366495125,1750289446962,-624.56,0.00023287,6]
[366495126,1750289446971,-188.358177,0.00023287,7]
[366495127,1750289446980,-710.01,0.00023287,6]
[366495128,1750289446990,-188.358177,0.00023287,7]
[366495129,1750289447000,-1265.83,0.00023287,6]
[366495130,1750289447009,-580.51,0.00023287,6]
[366495131,1750289447018,-732.5,0.00023287,6]
[366495132,1750289447028,-460.0,0.00023287,6]
[366495133,1750289447038,-460.0,0.00023287,6]
[366495134,1750289447047,-1028.01,0.00023287,6]
[366495135,1750289447056,-460.0,0.00023287,6]
[366495136,1750289447066,-1364.15,0.00023287,6]
[366495137,1750289447075,-460.0,0.00023287,6]
[366495138,1750289447085,-538.44497375,0.00023287,6]
[366495139,1750289447099,-460.0,0.00023287,6]
[366495140,1750289447108,-623.98,0.00023287,6]
[366495141,1750289447117,-1292.48,0.00023287,6]
[366495142,1750289447126,-483.96,0.00023287,6]
[366495143,1750289447137,-460.0,0.00023287,6]